[Event "Titled Tuesday Blitz November 22 Early 2022"]
[White "Vaibhav Jayant Raut"]
[Black "Salman, Pavel"]
[WhiteFideId "5089034"]
[BlackFideId "24153753"]
[WhiteElo "2147"]
[BlackElo "2187"]
[Result "0-1"]
[Round "08"]
[TimeControl "180+1"]
[Date "2022.11.23"]
[WhiteClock "0:00:11"]
[BlackClock "0:00:10"]

1. Nf3 {[%clk 0:03:00]}  c5 {[%clk 0:02:59]} 2. g3 {[%clk 0:03:01]}  b6 {[%clk 0:03:00]} 3. Bg2 {[%clk 0:03:01]}  Bb7 {[%clk 0:03:01]} 4. O-O {[%clk 0:03:02]}  e6 {[%clk 0:03:01]} 5. d3 {[%clk 0:03:02]}  Nf6 {[%clk 0:03:01]} 6. Nbd2 {[%clk 0:03:03]}  d6 {[%clk 0:02:58]} 7. a4 {[%clk 0:03:03]}  Be7 {[%clk 0:02:56]} 8. e4 {[%clk 0:03:03]}  O-O {[%clk 0:02:56]} 9. Re1 {[%clk 0:03:04]}  Nc6 {[%clk 0:02:56]} 10. Nc4 {[%clk 0:03:04]}  Qc7 {[%clk 0:02:52]} 11. Bf4 {[%clk 0:03:02]}  e5 {[%clk 0:02:48]} 12. Bg5 {[%clk 0:03:02]}  Nd7 {[%clk 0:02:40]} 13. Ne3 {[%clk 0:02:52]}  Bxg5 {[%clk 0:02:34]} 14. Nxg5 {[%clk 0:02:52]}  Nd4 {[%clk 0:02:32]} 15. c3 {[%clk 0:02:43]}  Ne6 {[%clk 0:02:21]} 16. Qg4 {[%clk 0:02:32]}  Nxg5 {[%clk 0:02:03]} 17. Qxg5 {[%clk 0:02:33]}  Qd8 {[%clk 0:02:02]} 18. Qg4 {[%clk 0:02:30]}  Nf6 {[%clk 0:02:00]} 19. Qe2 {[%clk 0:02:30]}  g6 {[%clk 0:01:51]} 20. Rf1 {[%clk 0:02:25]}  Re8 {[%clk 0:01:40]} 21. c4 {[%clk 0:02:23]}  Nd7 {[%clk 0:01:24]} 22. f4 {[%clk 0:02:20]}  exf4 {[%clk 0:01:25]} 23. Rxf4 {[%clk 0:02:16]}  Ne5 {[%clk 0:01:24]} 24. Raf1 {[%clk 0:02:16]}  Rf8 {[%clk 0:01:18]} 25. h4 {[%clk 0:02:11]}  h5 {[%clk 0:01:17]} 26. Rf6 {[%clk 0:02:05]}  Kg7 {[%clk 0:01:16]} 27. Bh3 {[%clk 0:01:54]}  Qxf6 {[%clk 0:01:11]} 28. Rxf6 {[%clk 0:01:49]}  Kxf6 {[%clk 0:01:12]} 29. Qf2+ {[%clk 0:01:47]}  Kg7 {[%clk 0:01:12]} 30. a5 {[%clk 0:01:45]}  Nxd3 {[%clk 0:01:09]} 31. Qd2 {[%clk 0:01:42]}  Bxe4 {[%clk 0:01:07]} 32. Qc3+ {[%clk 0:01:38]}  Ne5 {[%clk 0:01:05]} 33. a6 {[%clk 0:01:25]}  Rae8 {[%clk 0:01:04]} 34. b3 {[%clk 0:01:20]}  Re7 {[%clk 0:01:04]} 35. Bg2 {[%clk 0:01:17]}  Bxg2 {[%clk 0:01:03]} 36. Kxg2 {[%clk 0:01:18]}  Re6 {[%clk 0:01:02]} 37. Nd5 {[%clk 0:01:17]}  f6 {[%clk 0:00:56]} 38. Qa1 {[%clk 0:01:15]}  Rf7 {[%clk 0:00:55]} 39. Nxb6 {[%clk 0:01:12]}  Ng4 {[%clk 0:00:45]} 40. Nd5 {[%clk 0:01:11]}  Ne3+ {[%clk 0:00:45]} 41. Nxe3 {[%clk 0:01:10]}  Rxe3 {[%clk 0:00:46]} 42. Qd1 {[%clk 0:01:10]}  Rd7 {[%clk 0:00:37]} 43. Kf2 {[%clk 0:01:07]}  Re5 {[%clk 0:00:36]} 44. Kg2 {[%clk 0:01:07]}  Kf7 {[%clk 0:00:35]} 45. Qf3 {[%clk 0:01:03]}  f5 {[%clk 0:00:32]} 46. Qc6 {[%clk 0:00:57]}  Ke7 {[%clk 0:00:27]} 47. Qc8 {[%clk 0:00:57]}  Re3 {[%clk 0:00:20]} 48. Qg8 {[%clk 0:00:53]}  Rxb3 {[%clk 0:00:20]} 49. Qxg6 {[%clk 0:00:53]}  Rb2+ {[%clk 0:00:19]} 50. Kh3 {[%clk 0:00:53]}  Rb4 {[%clk 0:00:20]} 51. Qg5+ {[%clk 0:00:51]}  Ke8 {[%clk 0:00:19]} 52. Qxf5 {[%clk 0:00:52]}  Kd8 {[%clk 0:00:20]} 53. Qxh5 {[%clk 0:00:43]}  Rxc4 {[%clk 0:00:20]} 54. Qd5 {[%clk 0:00:40]}  Rc1 {[%clk 0:00:19]} 55. h5 {[%clk 0:00:39]}  c4 {[%clk 0:00:17]} 56. h6 {[%clk 0:00:40]}  c3 {[%clk 0:00:17]} 57. Qa8+ {[%clk 0:00:34]}  Ke7 {[%clk 0:00:10]} 58. Kg2 {[%clk 0:00:33]}  Rc2+ {[%clk 0:00:09]} 59. Kf3 {[%clk 0:00:32]}  Rh2 {[%clk 0:00:09]} 60. Qe4+ {[%clk 0:00:25]}  Kd8 {[%clk 0:00:09]} 61. Qe3 {[%clk 0:00:19]}  c2 {[%clk 0:00:08]} 62. Kg4 {[%clk 0:00:18]}  Rc7 {[%clk 0:00:08]} 63. Qg5+ {[%clk 0:00:18]}  Kd7 {[%clk 0:00:09]} 64. Qc1 {[%clk 0:00:16]}  Rxh6 {[%clk 0:00:08]} 65. Kf5 {[%clk 0:00:13]}  Rh1 {[%clk 0:00:08]} 66. Qxh1 {[%clk 0:00:11]}  c1=Q {[%clk 0:00:09]} 67. Qh7+ {[%clk 0:00:12]}  Kc6 {[%clk 0:00:09]} 68. Qg8 {[%clk 0:00:12]}  Qc2+ {[%clk 0:00:09]} 69. Kf4 {[%clk 0:00:12]}  Qd2+ {[%clk 0:00:10]} 70. Kf3 {[%clk 0:00:11]}  Qd5+ {[%clk 0:00:10]} 0-1


[Site "https://www.chess.com"]

[Event "Titled Tuesday Blitz November 22 Early 2022"]
[White "Vasques, Antonio Pedro Freixial"]
[Black "Kirillov, Dmitry"]
[WhiteFideId "1908332"]
[BlackFideId "34180572"]
[WhiteElo "2243"]
[BlackElo "2095"]
[Result "0-1"]
[Round "08"]
[TimeControl "180+1"]
[Date "2022.11.23"]
[WhiteClock "0:00:11"]
[BlackClock "0:00:05"]

1. e4 {[%clk 0:02:55]}  c6 {[%clk 0:03:00]} 2. d4 {[%clk 0:02:53]}  d5 {[%clk 0:03:00]} 3. e5 {[%clk 0:02:54]}  c5 {[%clk 0:03:01]} 4. dxc5 {[%clk 0:02:52]}  Nc6 {[%clk 0:03:01]} 5. Bf4 {[%clk 0:02:51]}  Bf5 {[%clk 0:02:39]} 6. Nf3 {[%clk 0:02:50]}  e6 {[%clk 0:02:38]} 7. Bb5 {[%clk 0:02:12]}  Bxc5 {[%clk 0:02:35]} 8. O-O {[%clk 0:02:12]}  Ne7 {[%clk 0:02:33]} 9. Nbd2 {[%clk 0:01:42]}  O-O {[%clk 0:02:32]} 10. Nh4 {[%clk 0:01:39]}  Ng6 {[%clk 0:02:11]} 11. Nxf5 {[%clk 0:01:33]}  exf5 {[%clk 0:02:12]} 12. Bxc6 {[%clk 0:01:27]}  bxc6 {[%clk 0:02:12]} 13. Qf3 {[%clk 0:01:21]}  Re8 {[%clk 0:02:10]} 14. Nb3 {[%clk 0:01:20]}  Bb6 {[%clk 0:02:06]} 15. Rfe1 {[%clk 0:01:14]}  a5 {[%clk 0:02:01]} 16. a4 {[%clk 0:01:11]}  Nf8 {[%clk 0:02:00]} 17. Bd2 {[%clk 0:01:02]}  g6 {[%clk 0:01:59]} 18. Rad1 {[%clk 0:00:52]}  Ne6 {[%clk 0:01:56]} 19. c4 {[%clk 0:00:51]}  dxc4 {[%clk 0:01:45]} 20. Bxa5 {[%clk 0:00:51]}  Qc7 {[%clk 0:01:21]} 21. Bxb6 {[%clk 0:00:46]}  Qxb6 {[%clk 0:01:22]} 22. Nd2 {[%clk 0:00:45]}  Rxa4 {[%clk 0:01:21]} 23. Qc3 {[%clk 0:00:44]}  Qd4 {[%clk 0:00:48]} 24. Rc1 {[%clk 0:00:37]}  Rd8 {[%clk 0:00:45]} 25. Nxc4 {[%clk 0:00:36]}  Nf4 {[%clk 0:00:28]} 26. Qxd4 {[%clk 0:00:20]}  Rxd4 {[%clk 0:00:27]} 27. Ne3 {[%clk 0:00:19]}  Nd3 {[%clk 0:00:26]} 28. Red1 {[%clk 0:00:13]}  Nxc1 {[%clk 0:00:26]} 29. Rxc1 {[%clk 0:00:14]}  Ra6 {[%clk 0:00:21]} 30. g3 {[%clk 0:00:14]}  f4 {[%clk 0:00:19]} 31. gxf4 {[%clk 0:00:14]}  Rxf4 {[%clk 0:00:20]} 32. Rc5 {[%clk 0:00:13]}  Rb4 {[%clk 0:00:19]} 33. Kg2 {[%clk 0:00:11]}  Rxb2 {[%clk 0:00:18]} 34. Ng4 {[%clk 0:00:12]}  Kg7 {[%clk 0:00:17]} 35. Rc4 {[%clk 0:00:10]}  Raa2 {[%clk 0:00:17]} 36. Rxc6 {[%clk 0:00:10]}  h5 {[%clk 0:00:15]} 37. Ne3 {[%clk 0:00:09]}  Rxf2+ {[%clk 0:00:16]} 38. Kg3 {[%clk 0:00:10]}  Rfe2 {[%clk 0:00:15]} 39. Nc4 {[%clk 0:00:10]}  Rg2+ {[%clk 0:00:15]} 40. Kf3 {[%clk 0:00:10]}  Raf2+ {[%clk 0:00:15]} 41. Ke3 {[%clk 0:00:10]}  Re2+ {[%clk 0:00:15]} 42. Kd3 {[%clk 0:00:11]}  Rxh2 {[%clk 0:00:15]} 43. Rc7 {[%clk 0:00:11]}  Reg2 {[%clk 0:00:13]} 44. Nd6 {[%clk 0:00:11]}  Rd2+ {[%clk 0:00:12]} 45. Ke3 {[%clk 0:00:11]}  Rhe2+ {[%clk 0:00:12]} 46. Kf4 {[%clk 0:00:11]}  Rf2+ {[%clk 0:00:12]} 47. Ke3 {[%clk 0:00:11]}  Rde2+ {[%clk 0:00:09]} 48. Kd4 {[%clk 0:00:12]}  h4 {[%clk 0:00:07]} 49. Ne4 {[%clk 0:00:12]}  Rf4 {[%clk 0:00:05]} 50. Kd3 {[%clk 0:00:11]}  Rfxe4 {[%clk 0:00:05]} 0-1


[Site "https://www.chess.com"]

[Event "Titled Tuesday Blitz November 22 Early 2022"]
[White "Zacurdajev, Dmitry"]
[Black "Arabidze, Meri"]
[WhiteFideId "4196309"]
[BlackFideId "13604040"]
[WhiteElo "2179"]
[BlackElo "2403"]
[Result "0-1"]
[Round "08"]
[TimeControl "180+1"]
[Date "2022.11.23"]
[WhiteClock "0:00:03"]
[BlackClock "0:00:32"]

1. d4 {[%clk 0:03:00]}  f5 {[%clk 0:02:59]} 2. c4 {[%clk 0:03:01]}  e6 {[%clk 0:02:59]} 3. Nc3 {[%clk 0:03:01]}  Nf6 {[%clk 0:02:59]} 4. g3 {[%clk 0:02:59]}  Bb4 {[%clk 0:02:58]} 5. Qc2 {[%clk 0:02:57]}  O-O {[%clk 0:02:56]} 6. Bg2 {[%clk 0:02:56]}  c5 {[%clk 0:02:56]} 7. d5 {[%clk 0:02:52]}  e5 {[%clk 0:02:39]} 8. Qxf5 {[%clk 0:02:28]}  Bxc3+ {[%clk 0:02:35]} 9. bxc3 {[%clk 0:02:28]}  d6 {[%clk 0:02:36]} 10. Qc2 {[%clk 0:02:20]}  Bg4 {[%clk 0:02:33]} 11. Nf3 {[%clk 0:02:00]}  h6 {[%clk 0:02:20]} 12. h3 {[%clk 0:01:47]}  Bh5 {[%clk 0:02:19]} 13. g4 {[%clk 0:01:47]}  Be8 {[%clk 0:02:15]} 14. Nh4 {[%clk 0:01:25]}  Nbd7 {[%clk 0:01:53]} 15. Nf5 {[%clk 0:01:13]}  Nb6 {[%clk 0:01:53]} 16. Qd3 {[%clk 0:00:58]}  Qd7 {[%clk 0:01:34]} 17. e4 {[%clk 0:00:36]}  Bg6 {[%clk 0:01:26]} 18. Nh4 {[%clk 0:00:28]}  Bh7 {[%clk 0:01:24]} 19. g5 {[%clk 0:00:20]}  hxg5 {[%clk 0:01:25]} 20. Bxg5 {[%clk 0:00:21]}  Qa4 {[%clk 0:01:25]} 21. Nf5 {[%clk 0:00:12]}  Bxf5 {[%clk 0:01:22]} 22. exf5 {[%clk 0:00:13]}  Qxc4 {[%clk 0:01:22]} 23. Qxc4 {[%clk 0:00:12]}  Nxc4 {[%clk 0:01:23]} 24. O-O-O {[%clk 0:00:11]}  b5 {[%clk 0:01:20]} 25. f4 {[%clk 0:00:11]}  e4 {[%clk 0:01:17]} 26. Rhe1 {[%clk 0:00:06]}  e3 {[%clk 0:01:16]} 27. Bf1 {[%clk 0:00:05]}  Rae8 {[%clk 0:00:53]} 28. Bxc4 {[%clk 0:00:05]}  bxc4 {[%clk 0:00:54]} 29. Re2 {[%clk 0:00:06]}  Re4 {[%clk 0:00:45]} 30. Rde1 {[%clk 0:00:04]}  Nxd5 {[%clk 0:00:45]} 31. Kc2 {[%clk 0:00:03]}  Rxf5 {[%clk 0:00:44]} 32. Rg2 {[%clk 0:00:02]}  Nxf4 {[%clk 0:00:41]} 33. Bxf4 {[%clk 0:00:03]}  Rfxf4 {[%clk 0:00:42]} 34. Reg1 {[%clk 0:00:04]}  Rf2+ {[%clk 0:00:41]} 35. Rxf2 {[%clk 0:00:04]}  exf2 {[%clk 0:00:42]} 36. Rf1 {[%clk 0:00:05]}  Rf4 {[%clk 0:00:42]} 37. Kd2 {[%clk 0:00:05]}  d5 {[%clk 0:00:38]} 38. Ke3 {[%clk 0:00:05]}  g5 {[%clk 0:00:38]} 39. Rxf2 {[%clk 0:00:03]}  d4+ {[%clk 0:00:36]} 40. Ke2 {[%clk 0:00:02]}  d3+ {[%clk 0:00:32]} 41. Ke3 {[%clk 0:00:02]}  Rxf2 {[%clk 0:00:32]} 42. Kxf2 {[%clk 0:00:03]}  Kg7 {[%clk 0:00:32]} 0-1


[Site "https://www.chess.com"]

[Event "Titled Tuesday Blitz November 22 Early 2022"]
[White "Zainullina, Nataliya"]
[Black "Matveeva, Olga"]
[WhiteFideId "4145488"]
[BlackFideId "24107018"]
[WhiteElo "2124"]
[BlackElo "2055"]
[Result "0-1"]
[Round "08"]
[TimeControl "180+1"]
[Date "2022.11.23"]
[WhiteClock "0:01:16"]
[BlackClock "0:00:54"]

1. Nf3 {[%clk 0:02:59]}  Nf6 {[%clk 0:02:59]} 2. c4 {[%clk 0:02:57]}  e6 {[%clk 0:02:59]} 3. g3 {[%clk 0:02:57]}  d5 {[%clk 0:02:59]} 4. d4 {[%clk 0:02:57]}  Bb4+ {[%clk 0:02:56]} 5. Bd2 {[%clk 0:02:56]}  Be7 {[%clk 0:02:57]} 6. Bg2 {[%clk 0:02:54]}  O-O {[%clk 0:02:57]} 7. O-O {[%clk 0:02:54]}  c6 {[%clk 0:02:58]} 8. Nc3 {[%clk 0:02:54]}  Nbd7 {[%clk 0:02:57]} 9. cxd5 {[%clk 0:02:52]}  exd5 {[%clk 0:02:53]} 10. Bf4 {[%clk 0:02:52]}  Re8 {[%clk 0:02:50]} 11. a3 {[%clk 0:02:47]}  a5 {[%clk 0:02:48]} 12. Rb1 {[%clk 0:02:46]}  Bf8 {[%clk 0:02:44]} 13. b4 {[%clk 0:02:45]}  axb4 {[%clk 0:02:44]} 14. axb4 {[%clk 0:02:45]}  b5 {[%clk 0:02:44]} 15. Ne5 {[%clk 0:02:40]}  Bb7 {[%clk 0:02:44]} 16. e4 {[%clk 0:02:39]}  dxe4 {[%clk 0:02:35]} 17. Nxe4 {[%clk 0:02:39]}  Nxe4 {[%clk 0:02:28]} 18. Bxe4 {[%clk 0:02:37]}  Nf6 {[%clk 0:02:23]} 19. Bxc6 {[%clk 0:02:28]}  Bxc6 {[%clk 0:02:18]} 20. Nxc6 {[%clk 0:02:28]}  Qd5 {[%clk 0:02:17]} 21. Ne5 {[%clk 0:02:20]}  Red8 {[%clk 0:02:10]} 22. Be3 {[%clk 0:02:12]}  Ra4 {[%clk 0:01:54]} 23. Qb3 {[%clk 0:01:55]}  Rxb4 {[%clk 0:01:43]} 24. Qxd5 {[%clk 0:01:55]}  Nxd5 {[%clk 0:01:44]} 25. Rxb4 {[%clk 0:01:54]}  Bxb4 {[%clk 0:01:40]} 26. Nc6 {[%clk 0:01:46]}  Ra8 {[%clk 0:01:20]} 27. Rb1 {[%clk 0:01:38]}  Nxe3 {[%clk 0:01:06]} 28. Nxb4 {[%clk 0:01:25]}  Nc4 {[%clk 0:01:02]} 29. Nc6 {[%clk 0:01:21]}  Nd6 {[%clk 0:01:01]} 30. d5 {[%clk 0:01:16]}  g6 {[%clk 0:00:54]} 0-1


[Site "https://www.chess.com"]

[Event "Titled Tuesday Blitz November 22 Early 2022"]
[White "Aarav Dengla"]
[Black "Torres Dominguez, David"]
[WhiteFideId "45059756"]
[BlackFideId "2220857"]
[WhiteElo "2261"]
[BlackElo "2037"]
[Result "1-0"]
[Round "09"]
[TimeControl "180+1"]
[Date "2022.11.23"]
[WhiteClock "0:01:37"]
[BlackClock "0:00:36"]

1. e4 {[%clk 0:02:50]}  Nc6 {[%clk 0:02:59]} 2. d4 {[%clk 0:02:49]}  e5 {[%clk 0:02:59]} 3. d5 {[%clk 0:02:48]}  Nce7 {[%clk 0:02:58]} 4. c4 {[%clk 0:02:48]}  Ng6 {[%clk 0:02:57]} 5. Nc3 {[%clk 0:02:48]}  Bb4 {[%clk 0:02:57]} 6. a3 {[%clk 0:02:46]}  Bxc3+ {[%clk 0:02:56]} 7. bxc3 {[%clk 0:02:47]}  d6 {[%clk 0:02:55]} 8. g3 {[%clk 0:02:48]}  N8e7 {[%clk 0:02:56]} 9. h4 {[%clk 0:02:48]}  O-O {[%clk 0:02:53]} 10. h5 {[%clk 0:02:48]}  Nh8 {[%clk 0:02:53]} 11. Bg2 {[%clk 0:02:47]}  f5 {[%clk 0:02:50]} 12. Nh3 {[%clk 0:02:45]}  Nf7 {[%clk 0:02:41]} 13. Qd3 {[%clk 0:02:35]}  b6 {[%clk 0:02:34]} 14. Ng5 {[%clk 0:02:33]}  Nxg5 {[%clk 0:02:30]} 15. Bxg5 {[%clk 0:02:34]}  Qe8 {[%clk 0:02:30]} 16. O-O-O {[%clk 0:02:28]}  h6 {[%clk 0:02:28]} 17. Bd2 {[%clk 0:02:19]}  fxe4 {[%clk 0:02:28]} 18. Bxe4 {[%clk 0:02:19]}  Bf5 {[%clk 0:02:28]} 19. f3 {[%clk 0:02:18]}  Qf7 {[%clk 0:02:23]} 20. Rdf1 {[%clk 0:02:15]}  Rae8 {[%clk 0:02:13]} 21. g4 {[%clk 0:02:12]}  Bd7 {[%clk 0:01:57]} 22. g5 {[%clk 0:02:11]}  Nf5 {[%clk 0:01:45]} 23. gxh6 {[%clk 0:02:07]}  gxh6 {[%clk 0:01:45]} 24. Rfg1+ {[%clk 0:02:06]}  Kh7 {[%clk 0:01:31]} 25. Rg6 {[%clk 0:02:04]}  Kh8 {[%clk 0:01:19]} 26. Rhg1 {[%clk 0:02:01]}  Rg8 {[%clk 0:01:16]} 27. Bxf5 {[%clk 0:02:00]}  Bxf5 {[%clk 0:01:14]} 28. Rxh6+ {[%clk 0:02:00]}  Bh7 {[%clk 0:01:11]} 29. Bg5 {[%clk 0:01:52]}  e4 {[%clk 0:00:53]} 30. Qd4+ {[%clk 0:01:44]}  Re5 {[%clk 0:00:48]} 31. Bf6+ {[%clk 0:01:40]}  Qxf6 {[%clk 0:00:45]} 32. Rxg8+ {[%clk 0:01:36]}  Kxg8 {[%clk 0:00:44]} 33. Rxf6 {[%clk 0:01:37]}  e3 {[%clk 0:00:42]} 34. Kd1 {[%clk 0:01:37]}  e2+ {[%clk 0:00:42]} 35. Ke1 {[%clk 0:01:37]}  Kg7 {[%clk 0:00:42]} 36. Qf4 {[%clk 0:01:35]}  Bd3 {[%clk 0:00:39]} 37. h6+ {[%clk 0:01:36]}  Kh7 {[%clk 0:00:38]} 38. Rf7+ {[%clk 0:01:37]}  Kg6 {[%clk 0:00:38]} 39. Rg7+ {[%clk 0:01:38]}  Kh5 {[%clk 0:00:36]} 40. h7 {[%clk 0:01:37]} 1-0


[Site "https://www.chess.com"]

[Event "Titled Tuesday Blitz November 22 Early 2022"]
[White "Agasarov, Benik"]
[Black "Ibadov, Dashgyn"]
[WhiteFideId "13314823"]
[BlackFideId "24107514"]
[WhiteElo "2178"]
[BlackElo "2208"]
[Result "1-0"]
[Round "09"]
[TimeControl "180+1"]
[Date "2022.11.23"]
[WhiteClock "0:00:07"]
[BlackClock "0:00:01"]

1. d4 {[%clk 0:02:57]}  Nf6 {[%clk 0:02:59]} 2. c4 {[%clk 0:02:53]}  e6 {[%clk 0:02:58]} 3. Nc3 {[%clk 0:02:52]}  c5 {[%clk 0:02:53]} 4. d5 {[%clk 0:02:52]}  exd5 {[%clk 0:02:53]} 5. cxd5 {[%clk 0:02:52]}  d6 {[%clk 0:02:54]} 6. e4 {[%clk 0:02:52]}  g6 {[%clk 0:02:55]} 7. f4 {[%clk 0:02:53]}  Bg7 {[%clk 0:02:54]} 8. Bb5+ {[%clk 0:02:53]}  Nfd7 {[%clk 0:02:54]} 9. Be2 {[%clk 0:02:33]}  O-O {[%clk 0:02:53]} 10. Nf3 {[%clk 0:02:32]}  Re8 {[%clk 0:02:44]} 11. O-O {[%clk 0:02:32]}  Nf6 {[%clk 0:02:32]} 12. e5 {[%clk 0:02:10]}  dxe5 {[%clk 0:02:08]} 13. fxe5 {[%clk 0:02:08]}  Ng4 {[%clk 0:02:09]} 14. Bg5 {[%clk 0:01:51]}  Qb6 {[%clk 0:02:09]} 15. Na4 {[%clk 0:01:41]}  Qa5 {[%clk 0:02:01]} 16. e6 {[%clk 0:01:11]}  fxe6 {[%clk 0:01:53]} 17. d6 {[%clk 0:01:04]}  Bd7 {[%clk 0:01:39]} 18. Nc3 {[%clk 0:00:57]}  Nc6 {[%clk 0:01:39]} 19. h3 {[%clk 0:00:42]}  Nh6 {[%clk 0:01:28]} 20. Ne4 {[%clk 0:00:26]}  Rf8 {[%clk 0:01:20]} 21. Bd2 {[%clk 0:00:17]}  Qb6 {[%clk 0:01:16]} 22. Qc1 {[%clk 0:00:18]}  Nf5 {[%clk 0:01:04]} 23. Qxc5 {[%clk 0:00:18]}  Ncd4 {[%clk 0:01:01]} 24. Qxb6 {[%clk 0:00:13]}  Nxe2+ {[%clk 0:01:01]} 25. Kf2 {[%clk 0:00:13]}  axb6 {[%clk 0:01:01]} 26. Kxe2 {[%clk 0:00:14]}  Bb5+ {[%clk 0:01:00]} 27. Kf2 {[%clk 0:00:13]}  Bxf1 {[%clk 0:01:00]} 28. Kxf1 {[%clk 0:00:11]}  Bxb2 {[%clk 0:00:59]} 29. Rb1 {[%clk 0:00:10]}  Rxa2 {[%clk 0:00:59]} 30. Ke2 {[%clk 0:00:06]}  Nd4+ {[%clk 0:00:44]} 31. Nxd4 {[%clk 0:00:07]}  Bxd4 {[%clk 0:00:45]} 32. Kd3 {[%clk 0:00:08]}  e5 {[%clk 0:00:46]} 33. Bh6 {[%clk 0:00:06]}  Rfa8 {[%clk 0:00:39]} 34. Rf1 {[%clk 0:00:03]}  b5 {[%clk 0:00:23]} 35. Nf6+ {[%clk 0:00:04]}  Kh8 {[%clk 0:00:23]} 36. d7 {[%clk 0:00:04]}  b4 {[%clk 0:00:15]} 37. Ne8 {[%clk 0:00:04]}  Bc5 {[%clk 0:00:12]} 38. Bf8 {[%clk 0:00:03]}  R2a3+ {[%clk 0:00:05]} 39. Ke4 {[%clk 0:00:03]}  Re3+ {[%clk 0:00:05]} 40. Kd5 {[%clk 0:00:03]}  b3 {[%clk 0:00:03]} 41. Bxc5 {[%clk 0:00:03]}  h5 {[%clk 0:00:03]} 42. Rf8+ {[%clk 0:00:02]}  Kh7 {[%clk 0:00:04]} 43. Rf7+ {[%clk 0:00:03]}  Kh6 {[%clk 0:00:04]} 44. Bxe3+ {[%clk 0:00:03]}  g5 {[%clk 0:00:05]} 45. Rf6+ {[%clk 0:00:03]}  Kh7 {[%clk 0:00:05]} 46. Rb6 {[%clk 0:00:04]}  Rd8 {[%clk 0:00:02]} 47. Rxb7 {[%clk 0:00:03]}  b2 {[%clk 0:00:02]} 48. Rxb2 {[%clk 0:00:03]}  Rxd7+ {[%clk 0:00:02]} 49. Ke6 {[%clk 0:00:03]}  Rd3 {[%clk 0:00:03]} 50. Nf6+ {[%clk 0:00:04]}  Kh6 {[%clk 0:00:03]} 51. Re2 {[%clk 0:00:03]}  Kg6 {[%clk 0:00:02]} 52. Kxe5 {[%clk 0:00:04]}  Ra3 {[%clk 0:00:02]} 53. Ne4 {[%clk 0:00:04]}  g4 {[%clk 0:00:01]} 54. hxg4 {[%clk 0:00:04]}  hxg4 {[%clk 0:00:02]} 55. Bd4 {[%clk 0:00:05]}  Kh5 {[%clk 0:00:02]} 56. Kf4 {[%clk 0:00:05]}  Ra4 {[%clk 0:00:01]} 57. Ng3+ {[%clk 0:00:05]}  Kh4 {[%clk 0:00:01]} 58. Nf5+ {[%clk 0:00:04]}  Kh5 {[%clk 0:00:01]} 59. g3 {[%clk 0:00:05]}  Rb4 {[%clk 0:00:01]} 60. Rh2+ {[%clk 0:00:04]}  Kg6 {[%clk 0:00:02]} 61. Rh6+ {[%clk 0:00:05]}  Kf7 {[%clk 0:00:02]} 62. Rf6+ {[%clk 0:00:06]}  Kg8 {[%clk 0:00:02]} 63. Kxg4 {[%clk 0:00:06]}  Ra4 {[%clk 0:00:02]} 64. Kg5 {[%clk 0:00:07]}  Kh7 {[%clk 0:00:02]} 65. g4 {[%clk 0:00:07]}  Kg8 {[%clk 0:00:02]} 66. Nh6+ {[%clk 0:00:07]}  Kh7 {[%clk 0:00:01]} 67. Rf7# {[%clk 0:00:07]} 1-0


[Site "https://www.chess.com"]

[Event "Titled Tuesday Blitz November 22 Early 2022"]
[White "Aizpurua, Patrick Emilio"]
[Black "Heinemann, Josefine"]
[WhiteFideId "6600522"]
[BlackFideId "12900460"]
[WhiteElo "2378"]
[BlackElo "2300"]
[Result "1-0"]
[Round "09"]
[TimeControl "180+1"]
[Date "2022.11.23"]
[WhiteClock "0:00:20"]
[BlackClock "0:00:22"]

1. d4 {[%clk 0:03:00]}  Nf6 {[%clk 0:02:58]} 2. c4 {[%clk 0:03:01]}  e6 {[%clk 0:02:54]} 3. Nf3 {[%clk 0:02:58]}  d5 {[%clk 0:02:54]} 4. g3 {[%clk 0:02:59]}  dxc4 {[%clk 0:02:51]} 5. Bg2 {[%clk 0:02:59]}  c5 {[%clk 0:02:51]} 6. O-O {[%clk 0:02:59]}  Nc6 {[%clk 0:02:50]} 7. Ne5 {[%clk 0:03:00]}  Bd7 {[%clk 0:02:48]} 8. Na3 {[%clk 0:02:59]}  cxd4 {[%clk 0:02:44]} 9. Naxc4 {[%clk 0:02:56]}  Rc8 {[%clk 0:02:44]} 10. b3 {[%clk 0:02:40]}  Bc5 {[%clk 0:02:39]} 11. Bb2 {[%clk 0:02:38]}  O-O {[%clk 0:02:39]} 12. Rc1 {[%clk 0:02:33]}  Qe7 {[%clk 0:02:31]} 13. Qd3 {[%clk 0:02:25]}  b5 {[%clk 0:02:24]} 14. Nxc6 {[%clk 0:02:15]}  Bxc6 {[%clk 0:02:22]} 15. Ne5 {[%clk 0:02:13]}  Bxg2 {[%clk 0:02:22]} 16. Kxg2 {[%clk 0:02:14]}  Qb7+ {[%clk 0:02:20]} 17. Kg1 {[%clk 0:02:14]}  Rfd8 {[%clk 0:02:18]} 18. Rfd1 {[%clk 0:02:07]}  h6 {[%clk 0:02:11]} 19. Rc2 {[%clk 0:01:50]}  Bb6 {[%clk 0:02:00]} 20. Rxc8 {[%clk 0:01:48]}  Qxc8 {[%clk 0:01:59]} 21. Rc1 {[%clk 0:01:41]}  Qb7 {[%clk 0:01:57]} 22. Nc6 {[%clk 0:01:26]}  Rd6 {[%clk 0:01:56]} 23. Qf3 {[%clk 0:00:54]}  d3 {[%clk 0:01:14]} 24. exd3 {[%clk 0:00:49]}  Rd5 {[%clk 0:01:03]} 25. Ne5 {[%clk 0:00:28]}  Qb8 {[%clk 0:00:46]} 26. Qe2 {[%clk 0:00:19]}  Qd8 {[%clk 0:00:36]} 27. h3 {[%clk 0:00:18]}  Qd6 {[%clk 0:00:32]} 28. Rc8+ {[%clk 0:00:17]}  Kh7 {[%clk 0:00:31]} 29. Rh8+ {[%clk 0:00:17]}  Kxh8 {[%clk 0:00:30]} 30. Nxf7+ {[%clk 0:00:18]}  Kg8 {[%clk 0:00:31]} 31. Nxd6 {[%clk 0:00:18]}  Rxd6 {[%clk 0:00:31]} 32. Bxf6 {[%clk 0:00:19]}  gxf6 {[%clk 0:00:30]} 33. h4 {[%clk 0:00:19]}  Kf7 {[%clk 0:00:27]} 34. h5 {[%clk 0:00:19]}  Rd5 {[%clk 0:00:26]} 35. Kg2 {[%clk 0:00:19]}  Rf5 {[%clk 0:00:26]} 36. f4 {[%clk 0:00:18]}  Rd5 {[%clk 0:00:26]} 37. Qg4 {[%clk 0:00:18]}  Ke7 {[%clk 0:00:25]} 38. Qg7+ {[%clk 0:00:18]}  Kd6 {[%clk 0:00:25]} 39. Qxf6 {[%clk 0:00:19]}  Rxd3 {[%clk 0:00:24]} 40. Qxh6 {[%clk 0:00:19]}  Rd2+ {[%clk 0:00:23]} 41. Kh3 {[%clk 0:00:19]}  Rxa2 {[%clk 0:00:22]} 42. Qf8+ {[%clk 0:00:19]}  Kd7 {[%clk 0:00:22]} 43. h6 {[%clk 0:00:20]}  Ra1 {[%clk 0:00:22]} 44. Qg7+ {[%clk 0:00:20]} 1-0


[Site "https://www.chess.com"]